bitfinex/quotes_SOLUSD_20260118
["timestamp","ask_amount","ask_price","bid_price","bid_amount"]
[1768779176698,12.72374931,140.09,140.03,9.67976012]
[1768779176872,5.58511777,140.07,140.03,4.09464235]
[1768779177290,5.58511777,140.05,140.0,11.2374275]
[1768779177505,4.05024231,140.07,140.0,4.09464235]
[1768779177799,12.72595974,140.04,140.0,4.09464235]
[1768779178687,12.72595974,140.04,139.99,26.87758543]
[1768779178887,5.5964401,140.06,140.01,4.09464235]
[1768779179091,5.5964401,140.05,139.99,26.87790464]
[1768779179400,4.05024231,140.05,139.99,26.87790464]
[1768779179586,5.5964401,140.04,140.0,7.14275424]
[1768779179904,7.13877784,140.08,140.03,4.09464235]
[1768779180072,12.73521794,140.08,140.03,4.09464235]
[1768779180476,7.13877784,140.08,140.03,9.69108245]
[1768779180778,12.73521794,140.08,140.03,4.09464235]
[1768779181602,7.13877784,140.08,140.03,9.69108245]
[1768779181801,12.73521794,140.08,140.03,4.09464235]
[1768779182395,12.73521794,140.08,140.03,11.23585048]
[1768779182570,5.5964401,140.06,140.01,4.09464235]
[1768779182775,5.5964401,140.05,140.0,4.09464235]
[1768779182998,4.05024231,140.07,140.0,11.23740939]
[1768779183198,5.5964401,140.05,140.0,11.23740939]
[1768779183390,5.5964401,140.04,140.0,4.09464235]
[1768779184286,5.5964401,140.04,140.0,11.23747279]
[1768779184599,12.73740703,140.04,140.0,11.23747279]
[1768779184901,4.05024231,140.06,140.0,11.23747279]
[1768779184902,12.73678574,140.05,140.0,11.23747279]
[1768779185085,12.73642648,140.06,140.01,4.09464235]
[1768779186108,30.58481011,140.07,140.01,16.83324506]
[1768779186306,5.5964401,140.08,140.03,4.09464235]
[1768779186514,7.13826825,140.09,140.03,4.09464235]
[1768779186696,5.5964401,140.08,140.03,4.09464235]
[1768779187002,5.5964401,140.08,140.03,9.69108245]
[1768779187206,7.13826825,140.09,140.03,4.09464235]
[1768779187400,12.73470835,140.09,140.03,16.83231265]
[1768779187708,7.13826825,140.09,140.04,9.69108245]
[1768779187890,12.73470835,140.09,140.04,4.09464235]
[1768779188110,9.64668241,140.07,140.02,4.09464235]
[1768779188306,5.5964401,140.06,140.01,28.37862938]
[1768779188588,5.5964401,140.06,140.01,32.47327173]
[1768779188804,4.05024231,140.07,140.01,32.47327173]
[1768779188997,4.05024231,140.07,140.01,4.09464235]
[1768779189391,12.73623732,140.06,140.01,11.23698114]
[1768779189596,7.13979722,140.06,140.01,16.83342124]
[1768779191109,12.73623732,140.06,140.01,11.23698114]
[1768779191485,7.13979722,140.06,140.02,4.09464235]
[1768779191688,12.73623732,140.06,140.02,4.09464235]
[1768779191898,5.5964401,140.05,140.0,4.09464235]
[1768779192097,4.05024231,140.05,139.98,26.87818365]
[1768779192318,5.5964401,140.03,139.98,26.87818365]
[1768779192817,5.5964401,140.01,139.96,11.2391748]
[1768779193117,4.05024231,140.03,139.96,11.2391748]
[1768779193293,5.5964401,140.01,139.96,11.2391748]
[1768779193490,5.5964401,140.01,139.95,15.64]
[1768779193491,5.5964401,139.99,139.95,15.64]
[1768779193905,24.99642908,140.02,139.95,15.64]
[1768779193906,5.5964401,139.98,139.95,15.64]
[1768779194117,5.5964401,139.99,139.94,4.09464235]
[1768779194408,5.5964401,139.99,139.94,11.24041657]
[1768779194893,5.5964401,139.98,139.94,4.09464235]
[1768779195097,5.5964401,139.96,139.92,4.09464235]
[1768779195300,5.5964401,139.96,139.92,11.24157335]
[1768779195502,5.5964401,139.98,139.92,16.83801345]
[1768779196291,5.5964401,139.98,139.93,4.09464235]
[1768779196614,7.14399258,139.98,139.94,7.14591967]
[1768779196811,7.14399258,139.98,139.93,9.69108245]
[1768779196812,12.74043268,139.98,139.93,11.24090192]
[1768779198096,5.5964401,139.96,139.91,4.09464235]
[1768779199387,5.5964401,139.96,139.91,9.69108245]
[1768779199590,9.64668241,139.97,139.92,7.14659549]
[1768779199816,9.64668241,139.99,139.94,9.69108245]
[1768779200007,5.5964401,139.98,139.94,4.09464235]
[1768779200210,12.7406984,139.98,139.94,4.09464235]
[1768779200598,12.7406984,139.98,139.93,7.14642229]
[1768779201421,7.1442583,139.98,139.93,11.24106464]
[1768779201598,12.7406984,139.98,139.93,11.24106464]
[1768779201918,12.7406984,139.98,139.93,16.83750474]
[1768779202216,12.7406984,139.98,139.93,11.24106464]
[1768779203820,7.1442583,139.98,139.93,11.24106464]
[1768779204114,12.7406984,139.98,139.93,11.24106464]
[1768779204329,5.5964401,139.97,139.92,11.43166484]
[1768779204821,9.69961566,139.97,139.91,12.74373619]
[1768779205122,9.69961566,139.97,139.91,17.02849221]
[1768779206015,25.00395254,139.98,139.92,4.28475602]
[1768779206016,7.1442583,139.98,139.92,4.28475602]
[1768779206222,12.7406984,139.98,139.92,9.88119612]
[1768779206398,12.7406984,139.98,139.92,17.0279709]
[1768779206891,5.5964401,139.97,139.93,4.28475602]
[1768779207098,5.5964401,139.96,139.91,7.14737243]
[1768779207295,5.5964401,139.96,139.91,27.07212845]
[1768779207496,5.5964401,139.95,139.91,19.92475602]
[1768779208023,5.5964401,139.96,139.91,27.07220497]
[1768779208317,4.10317556,139.95,139.91,15.64]
[1768779208520,5.5964401,139.93,139.88,11.6333833]
[1768779208703,16.84510481,139.95,139.9,11.43257274]
[1768779209202,11.24866471,139.95,139.9,11.43257274]
[1768779209517,16.84510481,139.95,139.9,4.28475602]
[1768779209697,16.84510481,139.95,139.9,19.92475602]
[1768779210648,5.5964401,139.94,139.9,19.92475602]
[1768779211519,29.11218739,139.95,139.81,4.28475602]
[1768779211520,4.10317556,139.9,139.81,4.28475602]
[1768779211834,5.5964401,139.82,139.77,4.28475602]
[1768779211999,5.5964401,139.82,139.77,19.92475602]
[1768779212211,9.69961566,139.84,139.79,7.3531509]
[1768779212518,11.25220431,139.88,139.83,11.43629717]
[1768779212722,12.74546885,139.88,139.83,19.92475602]
[1768779213826,12.74546885,139.88,139.83,15.64]
[1768779213827,9.69961566,139.86,139.83,15.64]
[1768779214613,5.5964401,139.85,139.79,4.48475602]
[1768779214927,5.5964401,139.84,139.8,15.64]
[1768779215640,25.02341922,139.87,139.81,4.28475602]
[1768779215806,7.14853999,139.89,139.84,4.28475602]
[1768779216134,3.70064362,139.9,139.86,9.88119612]
[1768779216341,3.70064362,139.9,139.88,4.28475602]
[1768779216518,27.56332079,139.95,139.89,9.88119612]
[1768779216835,15.66,139.99,139.84,4.28475602]
[1768779216836,4.10317556,139.91,139.84,4.28475602]
[1768779217008,4.10317556,139.9,139.87,11.76645545]
[1768779217645,4.0621438,139.93,139.86,9.7860034]
[1768779217933,4.0621438,139.93,139.86,16.93595288]
[1768779217934,12.7433812,139.92,139.86,16.93595288]
[1768779218308,5.5964401,139.91,139.86,4.1895633]
[1768779218509,29.07643767,139.92,139.86,11.33951606]
[1768779218919,5.5964401,139.91,139.86,11.33951606]
[1768779219327,7.1469411,139.92,139.87,9.7860034]
[1768779220037,7.1469411,139.92,139.88,5.5964401]
[1768779220834,4.0621438,139.91,139.85,19.8495633]
[1768779221021,12.7433812,139.92,139.86,9.7860034]
[1768779221412,34.67287777,139.92,139.86,9.7860034]
[1768779221637,7.1469411,139.92,139.87,9.7860034]
[1768779222013,12.7433812,139.92,139.87,4.1895633]
[1768779222510,12.7433812,139.92,139.87,11.33893093]
[1768779223936,7.1469411,139.92,139.87,16.93537103]
[1768779224327,12.7433812,139.92,139.87,11.33893093]
[1768779224718,12.7433812,139.92,139.87,16.93537103]
[1768779224719,7.1469411,139.92,139.87,16.93537103]
[1768779226147,12.7433812,139.92,139.87,4.1895633]
[1768779226345,4.0621438,139.91,139.83,4.1895633]
[1768779226520,4.0621438,139.88,139.83,7.15113549]
[1768779226856,9.6585839,139.88,139.83,11.34069879]
[1768779227349,5.5964401,139.88,139.83,11.34069879]
[1768779227652,5.5964401,139.89,139.83,16.93713889]
[1768779228548,7.14898484,139.88,139.83,16.93713889]
[1768779228719,12.74542494,139.88,139.83,11.34069879]
[1768779230065,4.0621438,139.89,139.84,4.1895633]
[1768779230239,25.01877351,139.9,139.86,9.7860034]
[1768779230240,7.14836699,139.9,139.86,9.7860034]
[1768779231465,7.14762641,139.91,139.87,4.1895633]
[1768779231679,12.74331153,139.93,139.88,4.1895633]
[1768779232166,5.5964401,139.92,139.88,4.1895633]
[1768779232641,12.74331153,139.93,139.88,11.33832843]
[1768779232957,7.146073,139.94,139.9,4.20384233]
[1768779233334,12.7425131,139.94,139.88,16.94904756]
[1768779233547,5.5964401,139.92,139.88,4.20384233]
[1768779233949,4.0621438,139.93,139.88,4.20384233]
[1768779234150,12.74359061,139.92,139.88,4.20384233]
[1768779236042,29.07664708,139.92,139.86,4.20384233]
[1768779236252,5.5964401,139.91,139.87,4.20384233]
[1768779236752,23.46062625,139.95,139.9,4.20384233]
[1768779237670,25.00576218,139.97,139.92,4.20384233]
[1768779237837,30.60220228,139.97,139.92,4.20384233]
[1768779238038,5.5964401,139.96,139.91,7.14718878]
[1768779238269,29.06790598,139.97,139.91,4.20384233]
[1768779238443,5.5964401,139.96,139.91,11.3512156]
[1768779238950,5.5964401,139.96,139.91,4.20384233]
[1768779239158,5.5964401,139.95,139.91,4.20384233]
[1768779239337,4.0621438,139.96,139.91,9.80028243]
[1768779239848,11.20741668,139.96,139.92,5.5964401]
[1768779240239,29.06966303,139.96,139.91,9.80028243]
[1768779240693,29.06966303,139.96,139.91,5.5964401]
[1768779240852,4.0621438,139.91,139.86,5.60882175]
[1768779241168,9.67096555,139.91,139.85,16.96286836]
[1768779241536,9.67096555,139.91,139.85,11.35404661]
[1768779241737,7.14796283,139.9,139.86,9.81266408]
[1768779242566,9.67096555,139.89,139.83,7.15147558]
[1768779242863,9.67096555,139.89,139.83,9.81266408]
[1768779243064,4.0621438,139.89,139.83,16.96391209]
[1768779243240,9.67096555,139.89,139.83,16.96391209]
[1768779243443,4.0621438,139.88,139.83,16.96391209]
[1768779243652,34.68883545,139.9,139.84,16.96355968]
[1768779244164,34.68883545,139.9,139.8,4.20384233]
[1768779244165,5.60882175,139.85,139.8,4.20384233]
[1768779244545,5.60882175,139.85,139.8,11.35679827]
[1768779244872,5.60882175,139.84,139.79,0.2]
[1768779245080,5.60882175,139.83,139.79,0.2]
[1768779245249,5.60882175,139.85,139.79,5.80882175]
[1768779245455,9.67096555,139.83,139.79,0.2]
[1768779246069,7.15154115,139.83,139.79,0.2]
[1768779246868,16.8225067,139.83,139.79,0.2]
[1768779247089,34.70135959,139.83,139.79,0.2]
[1768779247387,5.60882175,139.82,139.79,0.2]
[1768779247553,5.60882175,139.81,139.76,4.20384233]
[1768779248051,12.76158153,139.81,139.76,16.9676863]
[1768779248366,12.76158153,139.81,139.76,11.35886455]
[1768779248577,12.76158153,139.81,139.76,16.9676863]
[1768779249071,12.76158153,139.81,139.76,11.35886455]
[1768779249271,12.76158153,139.81,139.76,16.9676863]
[1768779249477,12.76158153,139.81,139.76,11.35886455]
[1768779249673,12.76158153,139.81,139.76,16.9676863]
[1768779250051,12.76158153,139.81,139.76,11.35886455]
[1768779250257,12.76158153,139.81,139.76,16.9676863]
[1768779250456,12.76158153,139.81,139.76,4.20384233]
[1768779250651,12.76158153,139.81,139.74,4.20384233]
[1768779250652,5.60882175,139.79,139.74,4.20384233]
[1768779250860,9.67096555,139.8,139.74,9.81266408]
[1768779251658,9.67096555,139.79,139.74,4.20384233]
[1768779252381,4.0621438,139.79,139.74,16.9685966]
[1768779252678,11.21596736,139.79,139.74,16.9685966]
[1768779253276,11.21596736,139.79,139.74,11.35977485]
[1768779253466,7.15382356,139.79,139.74,16.9685966]
[1768779254981,16.82478911,139.79,139.74,4.20384233]
[1768779255360,7.15382356,139.79,139.75,4.20384233]
[1768779256372,17.8803743,139.82,139.77,4.20384233]
[1768779256568,4.0621438,139.83,139.77,9.81266408]
[1768779256774,9.67096555,139.83,139.77,9.81266408]
[1768779256985,19.7221438,139.85,139.78,5.60882175]
[1768779257189,19.7221438,139.85,139.67,5.34408856]
[1768779257190,4.0621438,139.78,139.67,5.34408856]
[1768779257369,5.60882175,139.7,139.64,7.16088917]
[1768779257568,5.34408856,139.74,139.62,15.66]
[1768779257779,5.34408856,139.74,139.63,37.1612963]
[1768779258082,5.60882175,139.67,139.62,19.86384233]
[1768779258294,5.60882175,139.67,139.63,4.20384233]
[1768779258586,37.82446682,139.74,139.65,4.20384233]
[1768779258784,5.60882175,139.72,139.66,4.20384233]
[1768779258964,15.66,139.74,139.67,4.20384233]
[1768779258965,33.55146838,139.74,139.67,4.20384233]
[1768779259157,15.66,139.82,139.72,4.20384233]
[1768779259463,4.06214381,139.78,139.72,4.14384233]
[1768779259883,4.06214381,139.8,139.73,5.60882175]
[1768779260065,9.67096556,139.8,139.74,5.60882175]
[1768779260265,9.67096556,139.8,139.7,15.66]
[1768779260266,5.60882175,139.79,139.7,15.66]
[1768779260586,5.60882175,139.79,139.73,5.60882175]
[1768779261183,7.15409929,139.78,139.72,7.15684025]
[1768779261396,7.15409929,139.78,139.74,4.20384233]
[1768779261966,7.15409929,139.78,139.69,7.15857419]
[1768779261967,5.60882175,139.77,139.69,7.15857419]
[1768779262284,5.60882175,139.74,139.69,15.66]
[1768779262486,4.09184381,139.76,139.69,15.66]
[1768779262679,4.09184381,139.76,139.69,21.26882175]
[1768779262680,9.70066556,139.76,139.69,21.26882175]
[1768779262867,5.60882175,139.75,139.69,21.26882175]
[1768779263076,12.76481653,139.75,139.7,7.15806544]
[1768779263276,12.76481653,139.75,139.69,28.42741464]
[1768779263474,7.15599478,139.75,139.7,5.60882175]
[1768779263887,12.76404541,139.76,139.7,5.60882175]
[1768779264079,7.15522366,139.76,139.71,4.31283646]
[1768779264280,7.15522366,139.76,139.72,4.31283646]
[1768779264482,5.60882175,139.77,139.72,4.31283646]
[1768779264884,9.91905826,139.74,139.61,35.81178441]
[1768779265106,7.15768377,139.71,139.62,30.0]
[1768779265392,5.60882175,139.7,139.64,5.60882175]
[1768779265691,11.46792028,139.71,139.65,5.60882175]
[1768779266186,11.46792028,139.71,139.65,15.66]
[1768779266371,11.46792028,139.71,139.65,5.60882175]
[1768779266577,5.60882175,139.71,139.65,5.60882175]
[1768779266780,51.43305573,139.77,139.55,35.53669243]
[1768779266781,5.60882175,139.68,139.62,7.16219251]
[1768779266983,5.60882175,139.68,139.63,19.97283646]
[1768779267293,5.60882175,139.68,139.64,4.31283646]
[1768779267902,5.60882175,139.66,139.62,11.47499807]
[1768779268188,5.60882175,139.66,139.63,4.31283646]
[1768779268394,29.36751946,139.68,139.62,4.31283646]
[1768779268595,5.60882175,139.65,139.62,4.31283646]
[1768779269300,5.60882175,139.66,139.62,4.31283646]
[1768779269672,5.60882175,139.65,139.61,22.82260452]
[1768779270079,5.60882175,139.66,139.61,22.82260452]
[1768779270383,5.60882175,139.65,139.61,22.82260452]
[1768779270582,5.60882175,139.64,139.58,3.94516622]
[1768779270778,5.60882175,139.62,139.56,21.85753748]
[1768779270978,5.60882175,139.62,139.57,19.62516622]
[1768779271192,5.60882175,139.61,139.57,22.84473234]
[1768779271378,5.60882175,139.6,139.55,3.94516622]
[1768779271578,5.60882175,139.6,139.56,15.68]
[1768779272001,5.60882175,139.61,139.56,19.62516622]
[1768779272299,5.60882175,139.65,139.59,3.94516622]
[1768779272479,5.60882175,139.65,139.6,15.68]
[1768779272676,5.60882175,139.64,139.59,3.94516622]
[1768779273214,5.60882175,139.65,139.59,3.94516622]
[1768779273390,9.91905826,139.65,139.59,3.94516622]
[1768779273698,17.07987997,139.65,139.59,3.94516622]
[1768779273898,11.47105822,139.65,139.59,3.94516622]
[1768779274197,5.60882175,139.66,139.6,3.94516622]
[1768779274399,11.47033052,139.67,139.61,7.16281068]
[1768779274701,5.60882175,139.65,139.62,15.68]
[1768779275891,11.47033052,139.67,139.62,15.68]
[1768779275892,5.60882175,139.63,139.62,15.68]
[1768779276105,5.60882175,139.63,139.58,11.1093819]
[1768779276309,5.60882175,139.62,139.58,11.1093819]
[1768779276504,5.60882175,139.61,139.57,15.68]
[1768779276694,5.60882175,139.61,139.57,22.84459546]
[1768779277194,5.60882175,139.6,139.57,7.16459546]
[1768779277392,5.60882175,139.61,139.58,7.1642798]
[1768779277597,5.60882175,139.62,139.58,7.1642798]
[1768779278280,16.90753812,139.63,139.58,7.1642798]
[1768779278485,5.60882175,139.62,139.57,11.1098683]
[1768779279379,11.29871637,139.63,139.57,11.1098683]
[1768779279602,5.60882175,139.62,139.57,11.1098683]
[1768779280684,12.77113726,139.62,139.57,11.1098683]
[1768779280887,11.29868935,139.63,139.57,11.1098683]
[1768779281186,5.60882175,139.62,139.58,3.94516622]
[1768779281392,16.9075111,139.63,139.58,3.94516622]
[1768779281707,5.60882175,139.62,139.58,11.10933444]
[1768779282105,4.13675335,139.65,139.59,3.94516622]
[1768779282287,3.70589312,139.76,139.61,3.94516622]
[1768779282288,5.60882175,139.66,139.61,3.94516622]
[1768779282486,9.7455751,139.67,139.61,3.94516622]
[1768779282687,5.60882175,139.68,139.62,25.23398797]
[1768779282909,4.13675335,139.69,139.62,25.23398797]
[1768779283091,5.60882175,139.68,139.63,3.94516622]
[1768779283797,5.60882175,139.68,139.64,7.16127184]
[1768779284385,7.15825649,139.7,139.64,11.10643806]
[1768779284611,5.60882175,139.8,139.65,3.94516622]
[1768779284612,4.13675335,139.74,139.65,3.94516622]
[1768779284914,9.7455751,139.73,139.67,3.94516622]
[1768779285093,5.60882175,139.74,139.68,3.94516622]
[1768779285290,7.15563506,139.75,139.68,3.94516622]
[1768779285494,5.60882175,139.73,139.68,3.94516622]
[1768779285735,5.60882175,139.73,139.69,7.15870856]
[1768779286116,11.29296866,139.74,139.69,7.15870856]
[1768779286414,5.60882175,139.73,139.69,7.15870856]
[1768779287713,4.13675335,139.69,139.64,7.16114724]
[1768779288008,9.7455751,139.68,139.64,7.16114724]
[1768779288186,9.7455751,139.65,139.61,7.1627313]
[1768779288388,5.60882175,139.64,139.61,7.1627313]
[1768779288615,4.13675335,139.65,139.62,7.16226303]
[1768779289114,9.7455751,139.67,139.63,7.16154979]
[1768779289299,9.7455751,139.67,139.61,21.85193249]
[1768779289493,4.13675335,139.68,139.61,11.10780149]
[1768779289697,5.60882175,139.69,139.63,3.94516622]
[1768779289899,5.60882175,139.69,139.64,3.94516622]
[1768779290595,9.7455751,139.7,139.64,3.94516622]
[1768779290910,9.7455751,139.7,139.64,9.55398797]
[1768779291220,16.90383772,139.7,139.64,3.94516622]
[1768779292596,16.90383772,139.7,139.65,7.16075904]
[1768779293111,5.60882175,139.69,139.65,7.16075904]
[1768779294519,5.60882175,139.71,139.65,11.10592526]
[1768779294689,9.83546796,139.72,139.65,16.71474701]
[1768779294889,11.38399053,139.72,139.66,3.94516622]
[1768779295114,16.99281228,139.72,139.67,3.94516622]
[1768779295487,4.22664621,139.7,139.64,7.16108693]
[1768779295690,4.22664621,139.69,139.65,15.68]
[1768779295914,9.83546796,139.68,139.63,7.16160827]
[1768779296213,9.83546796,139.7,139.64,11.10637889]
[1768779296396,16.99395725,139.7,139.64,11.10637889]
[1768779296818,5.60882175,139.71,139.65,9.55398797]
[1768779296992,4.22664621,139.7,139.65,3.94516622]
[1768779299619,4.22664621,139.7,139.66,7.16024631]
[1768779300735,16.99376406,139.7,139.66,7.16024631]
[1768779300912,17.00999162,139.7,139.66,7.16024631]
[1768779301220,4.22664621,139.67,139.61,3.94516622]
[1768779301434,9.85169552,139.66,139.61,3.94516622]
[1768779301602,5.62504931,139.65,139.62,7.1621306]
[1768779301803,5.56504932,139.65,139.62,7.1621306]
[1768779302030,5.56504932,139.65,139.61,7.16264324]
[1768779302205,7.15973365,139.67,139.61,7.16264324]
[1768779302725,5.62504931,139.66,139.61,7.16264324]
[1768779302913,5.62504931,139.63,139.56,4.00516621]
[1768779303104,5.62504931,139.63,139.57,19.68516621]
[1768779303306,25.05906779,139.67,139.59,7.16347635]
[1768779303619,9.85169552,139.64,139.58,16.79456571]
[1768779304121,9.85169552,139.66,139.6,4.00516621]
[1768779304421,5.62504931,139.65,139.6,4.00516621]
[1768779304599,9.85169552,139.65,139.59,4.00516621]
[1768779304800,9.85169552,139.64,139.59,4.00516621]
[1768779305324,4.22664621,139.66,139.6,4.00516621]
[1768779305529,4.22664621,139.66,139.6,9.63021552]
[1768779305709,4.22664621,139.66,139.61,7.16281068]
[1768779305905,4.22664621,139.66,139.61,25.06983739]
[1768779306105,4.22664621,139.66,139.61,29.0750036]
[1768779306301,72.99040381,139.71,139.61,29.0750036]
[1768779306302,4.22664621,139.7,139.64,9.63021552]
[1768779306613,5.62504931,139.69,139.62,4.00516621]
[1768779306931,4.22664621,139.68,139.63,15.68]
[1768779307108,9.85169552,139.68,139.63,15.68]
[1768779307728,17.01098762,139.68,139.63,22.84141114]
[1768779308816,9.85169552,139.67,139.63,22.84141114]
[1768779309527,4.22664621,139.67,139.63,22.84141114]
[1768779310202,17.01143985,139.67,139.63,22.84141114]
[1768779310403,4.22664621,139.65,139.61,7.16246955]
[1768779310618,4.22664621,139.65,139.62,7.16227929]
[1768779311125,5.62504931,139.66,139.62,7.16227929]
[1768779311318,5.62504931,139.66,139.6,43.2176585]
[1768779311532,9.85169552,139.67,139.63,7.16171593]
[1768779312036,17.01155447,139.67,139.63,7.16171593]
[1768779312330,4.22664621,139.66,139.63,7.16171593]
[1768779312833,4.22664621,139.66,139.62,7.16229766]
[1768779313408,4.22664621,139.68,139.63,4.00516621]
[1768779313608,4.22664621,139.68,139.63,19.68516621]
[1768779313828,4.22664621,139.7,139.64,9.63021552]
[1768779314031,4.22664621,139.7,139.63,15.68]
[1768779314032,4.22664621,139.7,139.65,9.63021552]
[1768779314211,9.85169552,139.72,139.66,19.68516621]
[1768779314418,4.22664621,139.71,139.66,25.31021552]
[1768779314833,4.22664621,139.71,139.67,7.15973365]
[1768779316209,4.22664621,139.7,139.66,22.84004841]
[1768779316828,4.22664621,139.66,139.61,22.84247]
[1768779317027,9.85169552,139.65,139.61,22.84247]
[1768779317235,4.22664621,139.65,139.61,22.84247]
[1768779317439,4.22664621,139.65,139.61,28.46751931]
[1768779317801,4.22664621,139.65,139.61,22.84247]
[1768779319439,4.22664621,139.62,139.57,17.91092149]
[1768779319610,4.22664621,139.62,139.58,7.16398364]
[1768779319804,4.22664621,139.62,139.59,7.1638078]
[1768779321618,11.38815735,139.64,139.59,7.1638078]
[1768779321814,7.16151114,139.64,139.59,12.78885711]
[1768779322037,11.38815735,139.64,139.59,12.78885711]
[1768779322331,4.22664621,139.63,139.59,7.1638078]
[1768779323436,11.56687393,139.67,139.62,12.78715313]
[1768779323614,4.40677776,139.66,139.62,12.78715313]
[1768779323816,4.40677776,139.66,139.62,7.16210382]
[1768779324539,17.89841224,139.68,139.62,7.16210382]
[1768779324540,4.40677776,139.68,139.63,5.62504931]
[1768779324713,4.40677776,139.7,139.65,5.62504931]
[1768779325447,11.56517815,139.7,139.65,12.78552064]
[1768779325608,4.40677776,139.72,139.69,5.62504931]
[1768779325813,4.40677776,139.74,139.69,5.62504931]
[1768779326723,4.40677776,139.76,139.7,4.00516621]
[1768779327035,4.40677776,139.78,139.74,5.62504931]
[1768779327435,11.56110072,139.78,139.74,5.62504931]
[1768779328315,4.40677776,139.78,139.74,12.78096704]
[1768779328839,4.40677776,139.78,139.75,5.62504931]
[1768779329211,4.40677776,139.78,139.74,12.78096704]
[1768779329839,11.56001536,139.8,139.75,5.62504931]
[1768779330336,7.1532376,139.8,139.75,5.62504931]
[1768779330631,11.56001536,139.8,139.75,5.62504931]
[1768779331038,4.40677776,139.79,139.74,16.78613325]
[1768779331241,4.40677776,139.78,139.74,7.15591773]
[1768779331419,4.40677776,139.77,139.72,39.19761713]
[1768779331619,4.40677776,139.77,139.73,12.78170858]
[1768779332748,4.40677776,139.77,139.73,7.15665927]
[1768779332954,4.40677776,139.77,139.73,12.78170858]
[1768779333247,11.56140194,139.77,139.73,7.15665927]
[1768779334045,4.40677776,139.77,139.73,7.15665927]
[1768779334237,4.40677776,139.77,139.73,12.78170858]
[1768779334619,11.56144785,139.77,139.73,12.78170858]
[1768779334856,4.40677776,139.77,139.73,12.78170858]
[1768779335844,10.03182707,139.81,139.75,5.62504931]
[1768779336144,4.40677776,139.8,139.75,21.30504931]
[1768779336733,4.40677776,139.65,139.58,4.11529703]
[1768779336934,5.62504931,139.65,139.58,4.11529703]
[1768779337137,4.40677776,139.66,139.59,4.11529703]
[1768779337333,4.40677776,139.66,139.6,25.42034634]
[1768779337532,5.34408856,139.72,139.6,25.42034634]
[1768779337732,7.16000994,139.67,139.61,4.3094395]
[1768779337932,7.16000994,139.67,139.62,34.3094395]
[1768779338133,7.16000994,139.67,139.63,19.9894395]
[1768779338733,7.16000994,139.67,139.63,25.61448881]
[1768779338935,25.05575814,139.69,139.63,25.61448881]
[1768779339646,9.04408856,139.75,139.67,4.3094395]
[1768779339647,29.3620149,139.74,139.67,4.3094395]
[1768779339851,4.31434932,139.73,139.68,15.68]
[1768779340052,5.62504931,139.72,139.65,4.3094395]
[1768779340227,4.31434932,139.7,139.66,15.68]
[1768779340427,4.31434932,139.72,139.66,25.61448881]
[1768779340723,7.15768377,139.71,139.66,32.77471556]
[1768779341522,7.15768377,139.71,139.66,19.9894395]
[1768779341863,7.15768377,139.71,139.66,32.77468143]
[1768779342446,11.47164195,139.72,139.66,32.77468143]
[1768779343252,17.09669126,139.72,139.66,32.77468143]
[1768779344140,11.47164195,139.72,139.66,32.77468143]
[1768779344340,17.09669126,139.72,139.66,32.77468143]
[1768779346055,4.31434932,139.74,139.67,4.3094395]
[1768779346357,9.93939863,139.74,139.68,9.93448881]
[1768779346527,4.31434932,139.76,139.7,9.93448881]
[1768779346954,4.31434932,139.76,139.71,4.3094395]
[1768779346955,7.15512306,139.76,139.71,4.3094395]
[1768779347136,30.66798004,139.76,139.72,15.68]
[1768779347334,30.66798004,139.76,139.66,25.0608084]
[1768779347335,9.89625513,139.74,139.73,14.86314979]
[1768779347562,9.89625513,139.74,139.69,19.9894395]
[1768779347732,9.85354307,139.73,139.68,15.68]
[1768779348063,7.15512306,139.76,139.71,9.93448881]
[1768779348361,9.85354307,139.75,139.69,11.46807321]
[1768779348553,5.62504931,139.74,139.69,11.46807321]
[1768779349732,9.85354307,139.75,139.69,11.46807321]
[1768779350233,9.85354307,139.7,139.64,19.9894395]
[1768779350855,9.85354307,139.7,139.65,4.3094395]
[1768779351237,4.22849376,139.7,139.65,4.3094395]
[1768779351733,4.22849376,139.72,139.66,11.4696783]
[1768779351953,7.15717148,139.72,139.66,12.78528811]
[1768779352160,11.38429696,139.75,139.7,4.3094395]
[1768779352339,17.00934627,139.75,139.7,4.3094395]
[1768779352863,11.38429696,139.75,139.7,4.3094395]
[1768779353358,11.38429696,139.75,139.69,16.84925455]
[1768779353560,17.00934627,139.75,139.69,16.84925455]
[1768779353962,11.38429696,139.75,139.7,4.06578979]
[1768779354142,11.38429696,139.75,139.69,12.78346476]
[1768779354143,7.15409929,139.78,139.73,4.06578979]
[1768779354337,9.85354307,139.76,139.71,19.74578979]
[1768779354544,9.85354307,139.74,139.69,7.15841545]
[1768779354744,9.85354307,139.74,139.69,15.68]
[1768779355237,9.85354307,139.74,139.69,22.83870157]
[1768779355456,17.0101281,139.74,139.69,22.83870157]
[1768779356253,11.38507879,139.74,139.69,22.83870157]
[1768779356561,17.0101281,139.74,139.69,22.83870157]
[1768779356748,5.62504931,139.73,139.68,4.06578979]
[1768779357061,7.15658503,139.74,139.67,15.68]
[1768779357062,9.85354307,139.71,139.67,15.68]
[1768779357561,9.85354307,139.71,139.66,11.22590463]